[Event "*** Titled Tuesday Blitz"]
[Site "Chess.com"]
[Date "2020.05.19"]
[Round "1"]
[White "vladislavkovalev"]
[Black "LuckSlayeer"]
[Result "1-0"]
[WhiteElo "2905"]
[BlackElo "2449"]
[TimeControl "180+1"]
[EndTime "12:07:41 PDT"]
[Termination "vladislavkovalev won by checkmate"]

1. e4 {[%clk 0:03:00.9]} 1... c5 {[%clk 0:02:57.5]} 2. Be2 {[%clk 0:03:00.8]}
2... Nc6 {[%clk 0:02:57.3]} 3. d3 {[%clk 0:03:01.7]} 3... g6 {[%clk 0:02:57.3]}
4. f4 {[%clk 0:03:02.6]} 4... Bg7 {[%clk 0:02:58]} 5. Nf3 {[%clk 0:03:03.5]}
5... d6 {[%clk 0:02:58]} 6. O-O {[%clk 0:03:04.1]} 6... e6 {[%clk 0:02:56.2]} 7.
c3 {[%clk 0:03:04.6]} 7... Nge7 {[%clk 0:02:56.5]} 8. Be3 {[%clk 0:03:05]} 8...
O-O {[%clk 0:02:55.8]} 9. d4 {[%clk 0:03:05.6]} 9... cxd4 {[%clk 0:02:54.7]} 10.
cxd4 {[%clk 0:03:06.5]} 10... d5 {[%clk 0:02:55.5]} 11. e5 {[%clk 0:03:06.6]}
11... Nf5 {[%clk 0:02:55.2]} 12. Bf2 {[%clk 0:03:07.2]} 12... Bd7 {[%clk
0:02:51.7]} 13. Nc3 {[%clk 0:03:07.4]} 13... Rc8 {[%clk 0:02:51.2]} 14. Rc1
{[%clk 0:03:07.6]} 14... Na5 {[%clk 0:02:49.6]} 15. b3 {[%clk 0:03:03.9]} 15...
f6 {[%clk 0:02:21.8]} 16. g4 {[%clk 0:02:46.8]} 16... Ne7 {[%clk 0:02:19.9]} 17.
exf6 {[%clk 0:02:38.8]} 17... Bxf6 {[%clk 0:02:20.8]} 18. Be3 {[%clk 0:02:39]}
18... Bg7 {[%clk 0:02:09.9]} 19. h3 {[%clk 0:02:31.3]} 19... a6 {[%clk
0:02:02.8]} 20. Qd2 {[%clk 0:02:29.5]} 20... b5 {[%clk 0:02:00.7]} 21. Ne5
{[%clk 0:02:27.3]} 21... Nac6 {[%clk 0:01:53.4]} 22. Bd3 {[%clk 0:02:16.9]}
22... Be8 {[%clk 0:01:48.5]} 23. Ne2 {[%clk 0:02:11.4]} 23... Qb6 {[%clk
0:01:42.9]} 24. Kg2 {[%clk 0:02:09.1]} 24... Nxe5 {[%clk 0:01:40.8]} 25. fxe5
{[%clk 0:02:08.4]} 25... Rxc1 {[%clk 0:01:33.9]} 26. Rxc1 {[%clk 0:02:08.3]}
26... b4 {[%clk 0:01:24.6]} 27. Nf4 {[%clk 0:01:11]} 27... a5 {[%clk 0:01:21.3]}
28. Rf1 {[%clk 0:01:04.1]} 28... Bb5 {[%clk 0:01:08.6]} 29. Rf2 {[%clk
0:00:59.7]} 29... Bxd3 {[%clk 0:01:06.7]} 30. Nxd3 {[%clk 0:01:00.6]} 30...
Rxf2+ {[%clk 0:01:03.2]} 31. Qxf2 {[%clk 0:01:01.5]} 31... Nc6 {[%clk
0:01:01.5]} 32. Nc5 {[%clk 0:01:00.5]} 32... Na7 {[%clk 0:00:55.5]} 33. Bg5
{[%clk 0:00:47.4]} 33... Nb5 {[%clk 0:00:48.2]} 34. Bf6 {[%clk 0:00:26.8]} 34...
Bf8 {[%clk 0:00:29.9]} 35. Bg5 {[%clk 0:00:20.6]} 35... Bg7 {[%clk 0:00:27.1]}
36. h4 {[%clk 0:00:18]} 36... Nc3 {[%clk 0:00:24.2]} 37. Bf6 {[%clk 0:00:10.9]}
37... Bf8 {[%clk 0:00:22.9]} 38. Nd7 {[%clk 0:00:11.2]} 38... Qb7 {[%clk
0:00:17.1]} 39. Nxf8 {[%clk 0:00:06.1]} 39... Ne4 {[%clk 0:00:17.1]} 40. Qf4
{[%clk 0:00:04.4]} 40... Kxf8 {[%clk 0:00:17]} 41. Qh6+ {[%clk 0:00:05]} 41...
Kg8 {[%clk 0:00:16.7]} 42. h5 {[%clk 0:00:04.9]} 42... Nxf6 {[%clk 0:00:14.9]}
43. exf6 {[%clk 0:00:05.8]} 43... Qf7 {[%clk 0:00:14.6]} 44. hxg6 {[%clk
0:00:04.9]} 44... hxg6 {[%clk 0:00:12.6]} 45. g5 {[%clk 0:00:05.4]} 45... Qe8
{[%clk 0:00:11.9]} 46. Qg7# {[%clk 0:00:05.1]} 1-0

[Event "*** Titled Tuesday Blitz"]
[Site "Chess.com"]
[Date "2020.05.19"]
[Round "1"]
[White "Marty435"]
[Black "emiliocordova"]
[Result "0-1"]
[WhiteElo "2419"]
[BlackElo "2815"]
[TimeControl "180+1"]
[EndTime "12:07:42 PDT"]
[Termination "emiliocordova won by checkmate"]

1. e4 {[%clk 0:02:59.2]} 1... c5 {[%clk 0:03:00]} 2. Nf3 {[%clk 0:02:59.1]} 2...
d6 {[%clk 0:03:00.4]} 3. d4 {[%clk 0:02:59.1]} 3... cxd4 {[%clk 0:03:01.3]} 4.
Nxd4 {[%clk 0:02:59.6]} 4... Nf6 {[%clk 0:03:01.8]} 5. Nc3 {[%clk 0:03:00.1]}
5... Nc6 {[%clk 0:03:02.4]} 6. f3 {[%clk 0:02:59]} 6... h5 {[%clk 0:02:59.7]} 7.
Be3 {[%clk 0:02:58.3]} 7... Bd7 {[%clk 0:02:58.4]} 8. Bc4 {[%clk 0:02:45.8]}
8... e6 {[%clk 0:02:57]} 9. Qe2 {[%clk 0:02:38]} 9... a6 {[%clk 0:02:53.5]} 10.
O-O-O {[%clk 0:02:36]} 10... Rc8 {[%clk 0:02:49.1]} 11. Bb3 {[%clk 0:02:35.8]}
11... Qa5 {[%clk 0:02:45.1]} 12. Kb1 {[%clk 0:02:30]} 12... Be7 {[%clk
0:02:43.5]} 13. h3 {[%clk 0:02:19.2]} 13... h4 {[%clk 0:02:42]} 14. f4 {[%clk
0:02:06.6]} 14... Nh5 {[%clk 0:02:37.2]} 15. Rhe1 {[%clk 0:01:56.9]} 15... Ng3
{[%clk 0:02:31.9]} 16. Qf3 {[%clk 0:01:53.4]} 16... Qh5 {[%clk 0:02:30.5]} 17.
Qxh5 {[%clk 0:01:46.3]} 17... Rxh5 {[%clk 0:02:30.3]} 18. Nf3 {[%clk 0:01:36.7]}
18... Na5 {[%clk 0:02:26.2]} 19. Bf2 {[%clk 0:01:36.1]} 19... Nxb3 {[%clk
0:02:25.6]} 20. axb3 {[%clk 0:01:35.8]} 20... Bc6 {[%clk 0:02:00.6]} 21. Re3
{[%clk 0:01:21.6]} 21... Rh6 {[%clk 0:01:25.7]} 22. Nd4 {[%clk 0:01:15.4]} 22...
Nh5 {[%clk 0:01:23.5]} 23. f5 {[%clk 0:00:53.3]} 23... e5 {[%clk 0:01:22]} 24.
Nde2 {[%clk 0:00:47.4]} 24... Nf6 {[%clk 0:01:17.4]} 25. Ng1 {[%clk 0:00:41.5]}
25... b5 {[%clk 0:01:11.5]} 26. b4 {[%clk 0:00:36.3]} 26... Bb7 {[%clk
0:01:06.1]} 27. Nf3 {[%clk 0:00:35.3]} 27... Rc4 {[%clk 0:01:06.2]} 28. Bxh4
{[%clk 0:00:22.9]} 28... Nxe4 {[%clk 0:01:03]} 29. Bxe7 {[%clk 0:00:22.5]} 29...
Kxe7 {[%clk 0:01:03.9]} 30. Nd5+ {[%clk 0:00:18.4]} 30... Bxd5 {[%clk
0:01:03.6]} 31. Rxd5 {[%clk 0:00:19.3]} 31... Nf6 {[%clk 0:00:54.1]} 32. Rd1
{[%clk 0:00:18.6]} 32... g6 {[%clk 0:00:44]} 33. fxg6 {[%clk 0:00:18.3]} 33...
Rxg6 {[%clk 0:00:44.9]} 34. g4 {[%clk 0:00:18.7]} 34... Rxb4 {[%clk 0:00:45.2]}
35. Nh4 {[%clk 0:00:18.8]} 35... Rg5 {[%clk 0:00:44]} 36. Nf5+ {[%clk 0:00:19]}
36... Rxf5 {[%clk 0:00:44.5]} 37. gxf5 {[%clk 0:00:19.9]} 37... Rf4 {[%clk
0:00:42.7]} 38. Red3 {[%clk 0:00:17.9]} 38... d5 {[%clk 0:00:42.3]} 39. Rc3
{[%clk 0:00:16.4]} 39... Kd6 {[%clk 0:00:42.1]} 40. Rc8 {[%clk 0:00:14.4]} 40...
Rxf5 {[%clk 0:00:41.9]} 41. Ra8 {[%clk 0:00:14.8]} 41... e4 {[%clk 0:00:41.8]}
42. Rxa6+ {[%clk 0:00:15.5]} 42... Ke5 {[%clk 0:00:42.2]} 43. Rb6 {[%clk
0:00:15.1]} 43... e3 {[%clk 0:00:42.2]} 44. Re1 {[%clk 0:00:13.3]} 44... Ke4
{[%clk 0:00:39.6]} 45. Rxb5 {[%clk 0:00:13.4]} 45... Rf2 {[%clk 0:00:37.7]} 46.
Kc1 {[%clk 0:00:13.1]} 46... d4 {[%clk 0:00:37.3]} 47. Rg5 {[%clk 0:00:11.3]}
47... Nd5 {[%clk 0:00:35.9]} 48. Rg4+ {[%clk 0:00:10.4]} 48... Nf4 {[%clk
0:00:35.8]} 49. h4 {[%clk 0:00:09.2]} 49... f5 {[%clk 0:00:35.9]} 50. Rgg1
{[%clk 0:00:07.1]} 50... d3 {[%clk 0:00:35.8]} 51. cxd3+ {[%clk 0:00:07.2]}
51... Nxd3+ {[%clk 0:00:36.7]} 52. Kb1 {[%clk 0:00:06.7]} 52... Rxb2+ {[%clk
0:00:36.9]} 53. Ka1 {[%clk 0:00:06.6]} 53... Rh2 {[%clk 0:00:37.6]} 54. Kb1
{[%clk 0:00:06.4]} 54... Nxe1 {[%clk 0:00:37.2]} 55. Rxe1 {[%clk 0:00:07.3]}
55... f4 {[%clk 0:00:37.8]} 56. Kc1 {[%clk 0:00:07.1]} 56... f3 {[%clk
0:00:37.9]} 57. Kd1 {[%clk 0:00:06.9]} 57... Rxh4 {[%clk 0:00:37.3]} 58. Rg1
{[%clk 0:00:06.4]} 58... Kd3 {[%clk 0:00:36.6]} 59. Rg3 {[%clk 0:00:02.4]} 59...
Rh1+ {[%clk 0:00:36]} 60. Rg1 {[%clk 0:00:02.2]} 60... Rxg1# {[%clk 0:00:36.1]}
0-1

[Event "*** Titled Tuesday Blitz"]
[Site "Chess.com"]
[Date "2020.05.19"]
[Round "1"]
[White "AnnaChessLook"]
[Black "Szparu"]
[Result "0-1"]
[WhiteElo "2198"]
[BlackElo "2525"]
[TimeControl "180+1"]
[EndTime "12:07:43 PDT"]
[Termination "Szparu won by resignation"]

1. d4 {[%clk 0:02:58.5]} 1... Nf6 {[%clk 0:02:59.8]} 2. c4 {[%clk 0:02:57.3]}
2... g6 {[%clk 0:03:00]} 3. Nc3 {[%clk 0:02:56.4]} 3... d5 {[%clk 0:02:59]} 4.
Nf3 {[%clk 0:02:55.9]} 4... Bg7 {[%clk 0:02:58.9]} 5. Bg5 {[%clk 0:02:55.5]}
5... Ne4 {[%clk 0:02:56.1]} 6. cxd5 {[%clk 0:02:55.6]} 6... Nxg5 {[%clk
0:02:55.7]} 7. Nxg5 {[%clk 0:02:55.3]} 7... e6 {[%clk 0:02:56.3]} 8. Nf3 {[%clk
0:02:54.8]} 8... exd5 {[%clk 0:02:56.3]} 9. e3 {[%clk 0:02:55.7]} 9... a5 {[%clk
0:02:53.6]} 10. Bd3 {[%clk 0:02:54.1]} 10... O-O {[%clk 0:02:53]} 11. O-O {[%clk
0:02:54.6]} 11... c6 {[%clk 0:02:52.9]} 12. a3 {[%clk 0:02:54.3]} 12... Na6
{[%clk 0:02:52.2]} 13. Rb1 {[%clk 0:02:53.7]} 13... Qe7 {[%clk 0:02:52]} 14. Re1
{[%clk 0:02:47.4]} 14... Be6 {[%clk 0:02:47.9]} 15. e4 {[%clk 0:02:46.5]} 15...
dxe4 {[%clk 0:02:48]} 16. Nxe4 {[%clk 0:02:47.4]} 16... h6 {[%clk 0:02:46.4]}
17. Qc2 {[%clk 0:02:36.6]} 17... Qd8 {[%clk 0:02:17]} 18. Nc5 {[%clk 0:02:28.2]}
18... Nxc5 {[%clk 0:02:15.2]} 19. dxc5 {[%clk 0:02:23.1]} 19... Bd5 {[%clk
0:02:10.1]} 20. Be4 {[%clk 0:02:01.6]} 20... Bxe4 {[%clk 0:02:10]} 21. Qxe4
{[%clk 0:02:02.5]} 21... Re8 {[%clk 0:02:02.1]} 22. Qc4 {[%clk 0:01:49.8]} 22...
Qf6 {[%clk 0:01:58.7]} 23. b4 {[%clk 0:01:47.7]} 23... axb4 {[%clk 0:01:53.6]}
24. axb4 {[%clk 0:01:48.6]} 24... Rxe1+ {[%clk 0:01:25.2]} 25. Rxe1 {[%clk
0:01:49.5]} 25... Qc3 {[%clk 0:01:19]} 26. Qe4 {[%clk 0:00:49.1]} 26... Ra1
{[%clk 0:00:55.1]} 27. h3 {[%clk 0:00:44.6]} 27... Rxe1+ {[%clk 0:00:50.5]} 28.
Qxe1 {[%clk 0:00:45]} 28... Qc4 {[%clk 0:00:40.4]} 29. Qe8+ {[%clk 0:00:37.1]}
29... Kh7 {[%clk 0:00:39.5]} 30. Qe7 {[%clk 0:00:30.4]} 30... Qc1+ {[%clk
0:00:33.1]} 31. Kh2 {[%clk 0:00:29.4]} 31... Qf4+ {[%clk 0:00:33.1]} 32. Kg1
{[%clk 0:00:28.8]} 32... Qxb4 {[%clk 0:00:33.5]} 33. Qxf7 {[%clk 0:00:28.4]}
33... Qxc5 {[%clk 0:00:28.9]} 34. Qxb7 {[%clk 0:00:27.6]} 34... Qc1+ {[%clk
0:00:27.4]} 35. Kh2 {[%clk 0:00:27.4]} 35... Qf4+ {[%clk 0:00:28]} 36. Kg1
{[%clk 0:00:27.2]} 36... Qe4 {[%clk 0:00:25.3]} 37. Qa7 {[%clk 0:00:16.7]} 37...
Qd5 {[%clk 0:00:23.8]} 38. Kh2 {[%clk 0:00:13.6]} 38... c5 {[%clk 0:00:22.1]}
39. Qe7 {[%clk 0:00:12.7]} 39... c4 {[%clk 0:00:20.6]} 40. Qe2 {[%clk
0:00:12.5]} 40... c3 {[%clk 0:00:20.5]} 41. Qc2 {[%clk 0:00:12.9]} 41... Qb5
{[%clk 0:00:18.5]} 42. Nh4 {[%clk 0:00:11.2]} 42... Qb6 {[%clk 0:00:15.4]} 43.
g3 {[%clk 0:00:10]} 43... h5 {[%clk 0:00:12.7]} 44. Kg2 {[%clk 0:00:10.1]} 44...
Kh6 {[%clk 0:00:11]} 45. Nf3 {[%clk 0:00:10.5]} 45... Qb2 {[%clk 0:00:09.6]} 46.
h4 {[%clk 0:00:11.4]} 46... Qxc2 {[%clk 0:00:09.7]} 0-1

[Event "*** Titled Tuesday Blitz"]
[Site "Chess.com"]
[Date "2020.05.19"]
[Round "1"]
[White "GMALMEIDA"]
[Black "Omk124"]
[Result "1-0"]
[WhiteElo "2691"]
[BlackElo "2367"]
[TimeControl "180+1"]
[EndTime "12:07:44 PDT"]
[Termination "GMALMEIDA won by checkmate"]

1. d4 {[%clk 0:03:00.9]} 1... Nf6 {[%clk 0:02:57.4]} 2. Nf3 {[%clk 0:03:00]}
2... g6 {[%clk 0:02:55.9]} 3. c4 {[%clk 0:02:59.7]} 3... Bg7 {[%clk 0:02:53.7]}
4. Nc3 {[%clk 0:02:59.6]} 4... d5 {[%clk 0:02:53.2]} 5. Bg5 {[%clk 0:02:58.4]}
5... c6 {[%clk 0:02:51.4]} 6. e3 {[%clk 0:02:57.8]} 6... O-O {[%clk 0:02:51]} 7.
h3 {[%clk 0:02:54]} 7... Nbd7 {[%clk 0:02:47.3]} 8. cxd5 {[%clk 0:02:44]} 8...
cxd5 {[%clk 0:02:46.7]} 9. Bd3 {[%clk 0:02:40]} 9... a6 {[%clk 0:02:45.5]} 10.
a4 {[%clk 0:02:39.5]} 10... b6 {[%clk 0:02:45.1]} 11. O-O {[%clk 0:02:38.8]}
11... Bb7 {[%clk 0:02:45.2]} 12. Qb3 {[%clk 0:02:38.4]} 12... e6 {[%clk
0:02:18.4]} 13. Ne5 {[%clk 0:02:21.1]} 13... h6 {[%clk 0:02:13.6]} 14. Nxd7
{[%clk 0:02:11.9]} 14... Qxd7 {[%clk 0:02:13.3]} 15. Bxf6 {[%clk 0:02:10.1]}
15... Bxf6 {[%clk 0:02:14.2]} 16. Qxb6 {[%clk 0:02:10.2]} 16... Rfb8 {[%clk
0:02:14.8]} 17. Qb3 {[%clk 0:02:07.3]} 17... Bc6 {[%clk 0:02:14.8]} 18. Qc2
{[%clk 0:02:05.8]} 18... Be7 {[%clk 0:01:55.8]} 19. f4 {[%clk 0:01:48.9]} 19...
Kg7 {[%clk 0:01:54.5]} 20. Qe2 {[%clk 0:01:33.5]} 20... Qa7 {[%clk 0:01:05.6]}
21. g4 {[%clk 0:01:27]} 21... Bd7 {[%clk 0:01:00.7]} 22. f5 {[%clk 0:01:24.5]}
22... Bf6 {[%clk 0:00:58.6]} 23. fxg6 {[%clk 0:01:14.8]} 23... fxg6 {[%clk
0:00:58.8]} 24. Qc2 {[%clk 0:01:06.1]} 24... g5 {[%clk 0:00:52.2]} 25. Rf2
{[%clk 0:00:59.3]} 25... Rf8 {[%clk 0:00:50.8]} 26. Raf1 {[%clk 0:00:59.8]}
26... Be7 {[%clk 0:00:50.8]} 27. Bh7 {[%clk 0:00:54.3]} 27... Be8 {[%clk
0:00:43.5]} 28. Rxf8 {[%clk 0:00:52.4]} 28... Bxf8 {[%clk 0:00:44.4]} 29. Qf2
{[%clk 0:00:48.6]} 29... Be7 {[%clk 0:00:43.5]} 30. Bd3 {[%clk 0:00:46]} 30...
Qb7 {[%clk 0:00:35.8]} 31. e4 {[%clk 0:00:43.2]} 31... Bg6 {[%clk 0:00:29.2]}
32. exd5 {[%clk 0:00:24.7]} 32... Bxd3 {[%clk 0:00:28.6]} 33. Qf7+ {[%clk
0:00:24.4]} 33... Kh8 {[%clk 0:00:28.6]} 34. Rf6 {[%clk 0:00:22.9]} 34... Bxf6
{[%clk 0:00:26.1]} 35. Qxb7 {[%clk 0:00:22.2]} 35... Bxd4+ {[%clk 0:00:26.4]}
36. Kg2 {[%clk 0:00:20.6]} 36... Rf8 {[%clk 0:00:25]} 37. dxe6 {[%clk
0:00:20.8]} 37... Rf2+ {[%clk 0:00:23.3]} 38. Kg3 {[%clk 0:00:20.6]} 38... Rd2
{[%clk 0:00:18.9]} 39. Qd5 {[%clk 0:00:19.5]} 39... Bf2+ {[%clk 0:00:17.7]} 40.
Kf3 {[%clk 0:00:19.7]} 40... Be2+ {[%clk 0:00:17.5]} 41. Kxf2 {[%clk 0:00:19.9]}
41... Rxd5 {[%clk 0:00:17.5]} 42. Nxd5 {[%clk 0:00:20.8]} 42... Bc4 {[%clk
0:00:17.9]} 43. e7 {[%clk 0:00:20.5]} 43... Bxd5 {[%clk 0:00:18.4]} 44. e8=Q+
{[%clk 0:00:20.5]} 44... Kg7 {[%clk 0:00:19.3]} 45. Qd7+ {[%clk 0:00:20.7]}
45... Kg8 {[%clk 0:00:19.8]} 46. Qxd5+ {[%clk 0:00:20.6]} 46... Kh8 {[%clk
0:00:20.5]} 47. Qd7 {[%clk 0:00:19.8]} 47... Kg8 {[%clk 0:00:20.9]} 48. Ke3
{[%clk 0:00:20.2]} 48... Kh8 {[%clk 0:00:21.4]} 49. Ke4 {[%clk 0:00:20.8]} 49...
Kg8 {[%clk 0:00:22]} 50. Ke5 {[%clk 0:00:21.3]} 50... Kh8 {[%clk 0:00:22.5]} 51.
Kf6 {[%clk 0:00:21.8]} 51... Kg8 {[%clk 0:00:23.2]} 52. Qg7# {[%clk 0:00:22.2]}
1-0

[Event "*** Titled Tuesday Blitz"]
[Site "Chess.com"]
[Date "2020.05.19"]
[Round "1"]
[White "Chessmatus"]
[Black "ZverevLev"]
[Result "0-1"]
[WhiteElo "2490"]
[BlackElo "2156"]
[TimeControl "180+1"]
[EndTime "12:07:44 PDT"]
[Termination "ZverevLev won by checkmate"]

1. e4 {[%clk 0:03:00.9]} 1... e5 {[%clk 0:02:55.7]} 2. Nf3 {[%clk 0:03:00.5]}
2... Nc6 {[%clk 0:02:51.6]} 3. Bb5 {[%clk 0:02:59.6]} 3... a6 {[%clk 0:02:49.7]}
4. Ba4 {[%clk 0:02:59.2]} 4... Nf6 {[%clk 0:02:47.2]} 5. O-O {[%clk 0:02:59.3]}
5... Be7 {[%clk 0:02:45.4]} 6. Re1 {[%clk 0:02:59.7]} 6... b5 {[%clk 0:02:38.8]}
7. Bb3 {[%clk 0:03:00.1]} 7... d6 {[%clk 0:02:31.3]} 8. c3 {[%clk 0:02:59.3]}
8... O-O {[%clk 0:02:29.6]} 9. h3 {[%clk 0:02:59.4]} 9... Na5 {[%clk 0:02:24.8]}
10. Bc2 {[%clk 0:02:59.8]} 10... c5 {[%clk 0:02:24.2]} 11. d4 {[%clk 0:03:00.4]}
11... cxd4 {[%clk 0:02:21.6]} 12. cxd4 {[%clk 0:03:01.3]} 12... Bb7 {[%clk
0:02:19]} 13. d5 {[%clk 0:02:58.8]} 13... Nc4 {[%clk 0:02:15]} 14. b3 {[%clk
0:02:28.1]} 14... Nb6 {[%clk 0:02:11.9]} 15. Nbd2 {[%clk 0:02:19.4]} 15... Rc8
{[%clk 0:02:07.4]} 16. Nf1 {[%clk 0:02:17.1]} 16... Re8 {[%clk 0:02:02.7]} 17.
Ng3 {[%clk 0:02:10.4]} 17... g6 {[%clk 0:02:02.4]} 18. Bd3 {[%clk 0:02:06.8]}
18... Bf8 {[%clk 0:02:01.6]} 19. Bg5 {[%clk 0:02:02.7]} 19... Bg7 {[%clk
0:02:01.6]} 20. Qd2 {[%clk 0:02:01.7]} 20... Nbd7 {[%clk 0:01:57.4]} 21. Rac1
{[%clk 0:01:52]} 21... Nc5 {[%clk 0:01:56.9]} 22. Bb1 {[%clk 0:01:50.5]} 22...
Qb6 {[%clk 0:01:56.3]} 23. h4 {[%clk 0:01:17.5]} 23... h5 {[%clk 0:01:48.6]} 24.
Bh6 {[%clk 0:01:16.8]} 24... Bh8 {[%clk 0:01:38]} 25. Bg5 {[%clk 0:00:57.3]}
25... Bg7 {[%clk 0:01:35.3]} 26. Rc3 {[%clk 0:00:56.3]} 26... b4 {[%clk
0:01:29.6]} 27. Rc4 {[%clk 0:00:53]} 27... a5 {[%clk 0:01:29.2]} 28. Be3 {[%clk
0:00:51.1]} 28... Nfd7 {[%clk 0:01:26.3]} 29. Bh6 {[%clk 0:00:40.5]} 29... Bh8
{[%clk 0:01:25]} 30. Nxh5 {[%clk 0:00:32]} 30... gxh5 {[%clk 0:01:23.9]} 31.
Qg5+ {[%clk 0:00:32.2]} 31... Kh7 {[%clk 0:01:22.9]} 32. Qxh5 {[%clk 0:00:32.5]}
32... Kg8 {[%clk 0:01:20.7]} 33. Qg4+ {[%clk 0:00:31.9]} 33... Kh7 {[%clk
0:01:19.5]} 34. Qh5 {[%clk 0:00:22.8]} 34... Kg8 {[%clk 0:01:18.6]} 35. Be3
{[%clk 0:00:20.4]} 35... Qd8 {[%clk 0:01:14.5]} 36. Ng5 {[%clk 0:00:19.9]} 36...
Qf6 {[%clk 0:01:12.2]} 37. Qh7+ {[%clk 0:00:19.9]} 37... Kf8 {[%clk 0:01:11.9]}
38. f4 {[%clk 0:00:18.5]} 38... Qg7 {[%clk 0:01:08.1]} 39. Qh5 {[%clk
0:00:18.3]} 39... Nf6 {[%clk 0:01:05.9]} 40. Qf3 {[%clk 0:00:18.5]} 40... Ba6
{[%clk 0:01:04.1]} 41. Rcc1 {[%clk 0:00:17.9]} 41... Ncd7 {[%clk 0:00:55.2]} 42.
Rxc8 {[%clk 0:00:17.5]} 42... Rxc8 {[%clk 0:00:54.3]} 43. fxe5 {[%clk
0:00:16.1]} 43... Nxe5 {[%clk 0:00:54.1]} 44. Qf5 {[%clk 0:00:16.6]} 44... Qg6
{[%clk 0:00:53.7]} 45. Qf4 {[%clk 0:00:16.5]} 45... Nh5 {[%clk 0:00:51.7]} 46.
Qf2 {[%clk 0:00:16.4]} 46... Ng4 {[%clk 0:00:47.5]} 47. Qd2 {[%clk 0:00:16.7]}
47... Bc3 {[%clk 0:00:45.1]} 48. Qd1 {[%clk 0:00:14]} 48... Bxe1 {[%clk
0:00:44.6]} 49. Qxe1 {[%clk 0:00:14.9]} 49... Nxe3 {[%clk 0:00:43.8]} 50. Qxe3
{[%clk 0:00:15.8]} 50... Qg7 {[%clk 0:00:41.1]} 51. Qb6 {[%clk 0:00:15.5]} 51...
Rc1+ {[%clk 0:00:38.3]} 52. Kf2 {[%clk 0:00:13.8]} 52... Qb2+ {[%clk 0:00:37.4]}
53. Kf3 {[%clk 0:00:13.5]} 53... Qe2# {[%clk 0:00:36.9]} 0-1

[Event "*** Titled Tuesday Blitz"]
[Site "Chess.com"]
[Date "2020.05.19"]
[Round "1"]
[White "Volodar_Murzin"]
[Black "GasconJR"]
[Result "0-1"]
[WhiteElo "2741"]
[BlackElo "2417"]
[TimeControl "180+1"]
[EndTime "12:07:45 PDT"]
[Termination "GasconJR won on time"]

1. d4 {[%clk 0:02:59.9]} 1... f5 {[%clk 0:02:58.7]} 2. Nf3 {[%clk 0:02:57.6]}
2... Nf6 {[%clk 0:02:50.5]} 3. g3 {[%clk 0:02:52.7]} 3... e6 {[%clk 0:02:50.9]}
4. Bg2 {[%clk 0:02:53.6]} 4... d5 {[%clk 0:02:51.7]} 5. O-O {[%clk 0:02:52.9]}
5... Bd6 {[%clk 0:02:51.9]} 6. c4 {[%clk 0:02:52.6]} 6... O-O {[%clk 0:02:52.2]}
7. Nc3 {[%clk 0:02:52.5]} 7... c6 {[%clk 0:02:52.1]} 8. b3 {[%clk 0:02:52.2]}
8... b6 {[%clk 0:02:49]} 9. Bb2 {[%clk 0:02:45.1]} 9... Bb7 {[%clk 0:02:49.2]}
10. Qc1 {[%clk 0:02:44.4]} 10... Nbd7 {[%clk 0:02:41.1]} 11. Ba3 {[%clk
0:02:44]} 11... c5 {[%clk 0:02:37]} 12. cxd5 {[%clk 0:02:40.7]} 12... exd5
{[%clk 0:02:36.3]} 13. e3 {[%clk 0:02:41]} 13... Rc8 {[%clk 0:02:35]} 14. Qb2
{[%clk 0:02:37.9]} 14... cxd4 {[%clk 0:02:27.1]} 15. Bxd6 {[%clk 0:02:33.4]}
15... dxc3 {[%clk 0:02:26.3]} 16. Qa3 {[%clk 0:02:33.6]} 16... Re8 {[%clk
0:02:19.7]} 17. Qxa7 {[%clk 0:02:32.8]} 17... Bc6 {[%clk 0:02:04.4]} 18. Nd4
{[%clk 0:02:30.8]} 18... Ne4 {[%clk 0:02:00.9]} 19. Rfc1 {[%clk 0:02:26.3]}
19... Ba8 {[%clk 0:01:43.4]} 20. Bb4 {[%clk 0:02:10]} 20... Ndc5 {[%clk
0:01:36.9]} 21. f3 {[%clk 0:01:50.9]} 21... Qg5 {[%clk 0:01:06.1]} 22. Nc2
{[%clk 0:01:29.8]} 22... d4 {[%clk 0:01:00.5]} 23. exd4 {[%clk 0:00:38.1]} 23...
Nd3 {[%clk 0:00:56.7]} 24. fxe4 {[%clk 0:00:37.5]} 24... Nxc1 {[%clk 0:00:53.4]}
25. Qa3 {[%clk 0:00:14.5]} 25... Ne2+ {[%clk 0:00:49.1]} 26. Kh1 {[%clk
0:00:14.4]} 26... Qd2 {[%clk 0:00:49.6]} 27. Ne1 {[%clk 0:00:12.4]} 27... Bxe4
{[%clk 0:00:40]} 28. Bxe4 {[%clk 0:00:11.4]} 28... Rxe4 {[%clk 0:00:39.1]} 29.
Qa6 {[%clk 0:00:11.3]} 29... Rce8 {[%clk 0:00:37.2]} 30. Qc4+ {[%clk 0:00:11]}
30... Kh8 {[%clk 0:00:37.2]} 31. Nf3 {[%clk 0:00:11.6]} 31... Qe3 {[%clk
0:00:26.5]} 32. Rf1 {[%clk 0:00:10.4]} 32... Nxd4 {[%clk 0:00:16.8]} 33. Qxc3
{[%clk 0:00:07.4]} 33... Qxc3 {[%clk 0:00:16.3]} 34. Bxc3 {[%clk 0:00:08.3]}
34... Nxf3 {[%clk 0:00:16.9]} 35. Rxf3 {[%clk 0:00:08.7]} 35... Re3 {[%clk
0:00:16.2]} 36. Rxe3 {[%clk 0:00:08.8]} 36... Rxe3 {[%clk 0:00:17.1]} 37. Bd4
{[%clk 0:00:09.4]} 37... Re1+ {[%clk 0:00:16.4]} 38. Kg2 {[%clk 0:00:07.1]}
38... Re2+ {[%clk 0:00:16.8]} 39. Kh3 {[%clk 0:00:07.4]} 39... Rxa2 {[%clk
0:00:17]} 40. Bxb6 {[%clk 0:00:07.1]} 40... Rb2 {[%clk 0:00:17.1]} 41. Bd8
{[%clk 0:00:07.6]} 41... Rxb3 {[%clk 0:00:16.9]} 42. Bg5 {[%clk 0:00:08.5]}
42... Kg8 {[%clk 0:00:16.7]} 43. Bc1 {[%clk 0:00:08.9]} 43... Kf7 {[%clk
0:00:17]} 44. Bf4 {[%clk 0:00:07.9]} 44... Kf6 {[%clk 0:00:16.7]} 45. Kg2 {[%clk
0:00:08.4]} 45... g5 {[%clk 0:00:16.6]} 46. h4 {[%clk 0:00:09.1]} 46... gxf4
{[%clk 0:00:16.8]} 47. gxf4 {[%clk 0:00:10]} 47... Kg6 {[%clk 0:00:17.1]} 48.
Kh2 {[%clk 0:00:10.9]} 48... Kh5 {[%clk 0:00:17.7]} 49. Kg2 {[%clk 0:00:11.1]}
49... Kg4 {[%clk 0:00:18.3]} 0-1